fUSD/lending_fUSD_20240218
["ID","MTS","AMOUNT","RATE_DAILY","PERIOD"]
[314371574,1708241435681,-132.94887621,0.00036387,2]
[314371575,1708241435691,-500.0,0.00036387,2]
[314371576,1708241435702,-500.0,0.00036387,2]
[314371577,1708241435713,-500.0,0.00036387,2]
[314371578,1708241435723,-500.0,0.00036387,2]
[314371579,1708241435733,-1736.63,0.00036387,2]
[314371580,1708241435743,-500.0,0.00036387,2]
[314371581,1708241435752,-500.0,0.00036387,2]
[314371582,1708241435762,-500.0,0.00036387,2]
[314371583,1708241435772,-777.13,0.00036387,2]
[314371584,1708241435781,-500.0,0.00036387,2]
[314371585,1708241435790,-500.0,0.00036387,2]
[314371586,1708241435803,-500.0,0.00036387,2]
[314371587,1708241435813,-500.0,0.00036387,2]
[314371588,1708241435823,-500.0,0.00036387,2]
[314371589,1708241435833,-500.0,0.00036387,2]
[314371590,1708241435842,-500.0,0.00036387,2]
[314371591,1708241435852,-500.0,0.00036387,2]
[314371592,1708241435861,-500.0,0.00036387,2]
[314371593,1708241435871,-1005.93,0.00036387,2]
[314371594,1708241435880,-500.0,0.00036387,2]
[314371595,1708241435890,-910.9,0.00036387,2]
[314371596,1708241435899,-500.0,0.00036387,2]
[314371597,1708241435908,-500.0,0.00036387,2]
[314371598,1708241435918,-500.0,0.00036387,2]
[314371599,1708241435928,-500.0,0.00036387,2]
[314371600,1708241435937,-408.33435134,0.00036387,2]
[314371601,1708241435947,-500.0,0.00036387,2]
[314371602,1708241435956,-500.0,0.00036387,2]
[314371603,1708241435966,-560.39,0.00036387,2]
[314371604,1708241435975,-500.0,0.00036387,2]
[314371605,1708241435985,-500.0,0.00036388,2]
[314371606,1708241435994,-500.0,0.00036388,2]
[314371607,1708241436005,-500.0,0.00036388,2]
[314371608,1708241436015,-500.0,0.00036388,7]
[314371609,1708241436025,-158.0,0.00036388,2]
[314371610,1708241436034,-500.0,0.00036388,2]
[314371611,1708241436043,-500.0,0.00036388,2]
[314371612,1708241436054,-500.0,0.00036388,2]
[314371613,1708241436064,-500.0,0.00036388,2]
[314371614,1708241436074,-606.62992915,0.00036388,2]
[314371615,1708241436085,-500.0,0.00036388,2]
[314371616,1708241436094,-500.0,0.00036388,2]
[314371617,1708241436104,-500.0,0.00036388,2]
[314371618,1708241436114,-500.0,0.00036388,2]
[314371619,1708241436124,-500.0,0.00036388,2]
[314371620,1708241436133,-500.0,0.00036388,2]
[314371621,1708241436143,-500.0,0.00036388,2]
[314371622,1708241436153,-500.0,0.00036388,2]
[314371623,1708241436162,-500.0,0.00036388,2]
[314371624,1708241436172,-492.46370319,0.00036388,2]
[314371625,1708241436181,-315.14814046,0.00036388,2]
[314371626,1708241436191,-508.87128832,0.00036388,2]
[314371627,1708241436201,-500.0,0.00036388,2]
[314371628,1708241436210,-500.0,0.00036388,2]
[314371629,1708241436220,-500.0,0.00036388,2]
[314371630,1708241436229,-1172.62,0.00036388,2]
[314371631,1708241436239,-500.0,0.00036388,2]
[314371632,1708241436248,-500.0,0.00036388,2]
[314371633,1708241436258,-500.0,0.00036388,2]
[314371634,1708241436267,-500.0,0.00036388,2]
[314371635,1708241436276,-523.57801008,0.00036388,2]
[314371636,1708241436286,-160.57791619,0.00036388,2]
[314371637,1708241436295,-500.0,0.00036388,2]
[314371638,1708241436304,-500.0,0.00036388,2]
[314371639,1708241436314,-500.0,0.00036388,2]
[314371640,1708241436327,-500.0,0.00036388,2]
[314371641,1708241436336,-516.07241406,0.00036388,2]
[314371642,1708241436357,-500.0,0.00036388,2]
[314371643,1708241436367,-566.24498095,0.00036388,2]
[314371644,1708241436377,-500.0,0.00036388,2]
[314371645,1708241436387,-500.0,0.00036388,2]
[314371646,1708241436397,-500.0,0.00036388,2]
[314371647,1708241436407,-415.44263308,0.00036388,2]
[314371648,1708241436416,-500.0,0.00036388,2]
[314371649,1708241436426,-500.0,0.00036388,2]
[314371650,1708241436437,-500.0,0.00036388,2]
[314371651,1708241436447,-500.0,0.00036388,2]
[314371652,1708241436457,-500.0,0.00036388,2]
[314371653,1708241436467,-500.0,0.00036388,2]
[314371654,1708241436478,-1000.0,0.00036388,7]
[314371655,1708241436488,-500.0,0.00036388,2]
[314371656,1708241436498,-500.0,0.00036388,2]
[314371657,1708241436508,-500.0,0.00036388,2]
[314371658,1708241436520,-560.30163051,0.00036388,2]
[314371659,1708241436530,-1341.7,0.00036388,2]
[314371660,1708241436541,-500.0,0.00036388,2]
[314371661,1708241436551,-500.0,0.00036388,2]
[314371662,1708241436561,-500.0,0.00036388,2]
[314371663,1708241436572,-2245.58,0.00036388,2]
[314371664,1708241436582,-545.03608933,0.00036388,2]
[314371665,1708241436592,-500.0,0.00036388,2]
[314371666,1708241436603,-500.0,0.00036388,2]
[314371667,1708241436613,-500.0,0.00036388,2]
[314371668,1708241436627,-181.66823287,0.00036388,2]
[314371669,1708241436637,-999.26,0.00036388,2]
[314371670,1708241436646,-500.0,0.00036388,2]
[314371671,1708241436657,-500.0,0.00036388,2]
[314371672,1708241436666,-500.0,0.00036388,2]
[314371673,1708241436676,-500.0,0.00036388,2]
[314371674,1708241436687,-500.0,0.00036388,2]
[314371675,1708241436696,-500.0,0.00036388,2]
[314371676,1708241436706,-500.0,0.00036388,2]
[314371677,1708241436716,-14004.60837593,0.00036389,2]
[314371678,1708241436726,-14004.60837585,0.00036389,2]
[314371679,1708241436735,-150.0,0.00036391,2]
[314371680,1708241436745,-150.0,0.00036421,2]
[314371681,1708241436754,-150.0,0.0003653,2]
[314371682,1708241436765,-14004.60837585,0.00036553,2]
[314371683,1708241436774,-150.0,0.00036562,2]
[314371684,1708241436783,-938.52736995,0.00036567,2]
[314371685,1708241436793,-150.0,0.00036568,2]
[314371686,1708241436802,-150.0,0.00036604,2]
[314371687,1708241436811,-150.0,0.00036621,2]
[314371688,1708241436822,-150.0,0.0003663,2]
[314371689,1708241436832,-150.0,0.00036648,2]
[314371690,1708241436841,-150.0,0.00036684,2]
[314371691,1708241436851,-1157.63519555,0.00036699,2]
[314371692,1708241436860,-1669.4157,0.000367,2]
[314371693,1708241436869,-82633.5092,0.000367,2]
[314371694,1708241436879,-16416.88766936,0.00036724,2]
[314371695,1708241436891,-150.0,0.00036731,2]
[314371696,1708241436900,-150.0,0.0003676,2]
[314371697,1708241436910,-561.47263005,0.00036776,2]
[314371698,1708241436920,-193.26042319,0.00036789,2]
[314371699,1708241436930,-982.77,0.00036797,2]
[314371700,1708241436939,-500.0,0.00036797,2]
[314371701,1708241436949,-500.0,0.00036797,2]
[314371702,1708241436958,-500.0,0.00036797,2]
[314371703,1708241436968,-1464.29,0.00036797,2]
[314371704,1708241436977,-500.0,0.00036797,2]
[314371705,1708241436987,-500.0,0.00036797,2]
[314371706,1708241436997,-500.0,0.00036797,2]
[314371707,1708241437006,-1168.02,0.00036797,2]
[314371708,1708241437015,-1558.31,0.00036797,2]
[314371709,1708241437025,-500.0,0.00036797,2]
[314371710,1708241437034,-4909.31,0.00036797,2]
[314371711,1708241437043,-500.0,0.00036797,2]
[314371712,1708241437053,-848.26710872,0.00036798,2]
[314371713,1708241437062,-531.51722264,0.00036798,2]
[314371714,1708241437073,-500.0,0.00036798,2]
[314371715,1708241437082,-531.51722257,0.00036798,2]
[314371716,1708241437091,-531.51722257,0.00036798,2]
[314371717,1708241437101,-500.0,0.00036798,2]
[314371718,1708241437110,-500.0,0.00036798,2]
[314371719,1708241437119,-500.0,0.00036798,2]
[314371720,1708241437129,-500.0,0.00036798,2]
[314371721,1708241437138,-1736.63,0.00036798,2]
[314371722,1708241437148,-500.0,0.00036798,2]
[314371723,1708241437157,-500.0,0.00036798,2]
[314371724,1708241437167,-777.13,0.00036798,2]
[314371725,1708241437176,-500.0,0.00036798,2]
[314371726,1708241437186,-500.0,0.00036798,2]
[314371727,1708241437195,-500.0,0.00036798,2]
[314371728,1708241437205,-500.0,0.00036798,2]
[314371729,1708241437214,-500.0,0.00036798,2]
[314371730,1708241437223,-500.0,0.00036798,2]
[314371731,1708241437232,-1005.93,0.00036798,2]
[314371732,1708241437243,-500.0,0.00036798,2]
[314371733,1708241437253,-910.9,0.00036798,2]
[314371734,1708241437263,-197.4960682,0.00036798,2]
[314371735,1708241437273,-500.0,0.00036798,2]
[314371736,1708241437282,-500.0,0.00036798,2]
[314371737,1708241437291,-500.0,0.00036798,2]
[314371738,1708241437300,-500.0,0.00036798,2]
[314371739,1708241437310,-500.0,0.00036798,2]
[314371740,1708241437319,-560.39,0.00036798,2]
[314371741,1708241437331,-100000.0,0.00036798,2]
[314371742,1708241437340,-5000.0,0.00036799,3]
[314371743,1708241437349,-500.0,0.00036799,2]
[314371744,1708241437359,-461.59434274,0.00036799,2]
[314371745,1708241437368,-153.83817188,0.00036799,2]
[314371746,1708241437378,-500.0,0.00036799,2]
[314371747,1708241437387,-500.0,0.00036799,2]
[314371748,1708241437396,-500.0,0.00036799,2]
[314371749,1708241437405,-500.0,0.00036799,2]
[314371750,1708241437415,-500.0,0.00036799,2]
[314371751,1708241437427,-500.0,0.00036799,2]
[314371752,1708241437436,-500.0,0.00036799,7]
[314371753,1708241437446,-500.0,0.00036799,2]
[314371754,1708241437455,-521.55036842,0.00036799,2]
[314371755,1708241437465,-500.0,0.00036799,2]
[314371756,1708241437474,-500.0,0.00036799,2]
[314371757,1708241437484,-500.0,0.00036799,2]
[314371758,1708241437493,-500.0,0.00036799,2]
[314371759,1708241437503,-562.73984988,0.00036799,2]
[314371760,1708241437513,-500.0,0.00036799,2]
[314371761,1708241437522,-500.0,0.00036799,2]
[314371762,1708241437531,-545.4882942,0.00036799,2]
[314371763,1708241437542,-500.0,0.00036799,2]
[314371764,1708241437550,-500.0,0.00036799,2]
[314371765,1708241437561,-167.41997124,0.00036799,2]
[314371766,1708241437570,-500.0,0.00036799,2]
[314371767,1708241437580,-500.0,0.00036799,2]
[314371768,1708241437590,-500.0,0.00036799,2]
[314371769,1708241437599,-500.0,0.00036799,2]
[314371770,1708241437609,-500.0,0.00036799,2]
[314371771,1708241437619,-500.0,0.00036799,2]
[314371773,1708241437853,-1000.0,0.00036799,7]
[314371774,1708241437866,-500.0,0.00036799,2]
[314371775,1708241437875,-500.0,0.00036799,2]
[314371776,1708241437884,-500.0,0.00036799,2]
[314371777,1708241437896,-500.0,0.00036799,2]
[314371778,1708241437906,-500.0,0.00036799,2]
[314371779,1708241437915,-500.0,0.00036799,2]
[314371780,1708241437924,-500.0,0.00036799,2]
[314371781,1708241437933,-500.0,0.00036799,2]
[314371782,1708241437943,-500.0,0.00036799,2]
[314371783,1708241437952,-500.0,0.00036799,2]
[314371784,1708241437961,-1172.62,0.00036799,2]
[314371785,1708241437970,-500.0,0.00036799,2]
[314371786,1708241437980,-646.05,0.00036799,2]
[314371787,1708241437989,-500.0,0.00036799,2]
[314371788,1708241437998,-500.0,0.00036799,2]
[314371789,1708241438007,-500.0,0.00036799,2]
[314371790,1708241438016,-826.87,0.00036799,2]
[314371791,1708241438026,-500.0,0.00036799,2]
[314371792,1708241438035,-500.0,0.00036799,2]
[314371793,1708241438044,-500.0,0.00036799,2]
[314371794,1708241438053,-982.77,0.00036799,2]
[314371795,1708241438063,-500.0,0.00036799,2]
[314371796,1708241438073,-500.0,0.00036799,2]
[314371797,1708241438082,-341.95184295,0.00036799,2]
[314371798,1708241438091,-526.15035147,0.00036799,2]
[314371799,1708241438100,-267.44075928,0.00036799,2]
[314371800,1708241438110,-365.14516349,0.00036799,2]
[314371801,1708241438119,-349.76593619,0.00036799,2]
[314371802,1708241438128,-500.0,0.00036799,2]
[314371803,1708241438137,-500.0,0.00036799,2]
[314371804,1708241438146,-500.0,0.00036799,2]
[314371805,1708241438155,-698.33004438,0.00036799,7]
[314371806,1708241438164,-500.0,0.00036799,2]
[314371807,1708241438174,-500.0,0.00036799,2]
[314371808,1708241438183,-500.0,0.00036799,2]
[314371809,1708241438192,-1464.29,0.00036799,2]
[314371810,1708241438201,-500.0,0.00036799,2]
[314371811,1708241438210,-1341.7,0.00036799,2]
[314371812,1708241438219,-500.0,0.00036799,2]
[314371813,1708241438229,-290.41591768,0.00036799,2]
[314371814,1708241438238,-500.0,0.00036799,2]
[314371815,1708241438247,-500.0,0.00036799,2]
[314371816,1708241438257,-2245.58,0.00036799,2]
[314371817,1708241438266,-500.0,0.00036799,2]
[314371818,1708241438276,-290.72162139,0.00036799,2]
[314371819,1708241438286,-1168.02,0.00036799,2]
[314371820,1708241438295,-470.03261401,0.00036799,2]
[314371821,1708241438304,-500.0,0.00036799,2]
[314371822,1708241438313,-1558.31,0.00036799,2]
[314371823,1708241438323,-254.81826857,0.00036799,2]
[314371824,1708241438332,-999.26,0.00036799,2]
[314371825,1708241438341,-500.0,0.00036799,2]
[314371826,1708241438351,-500.0,0.00036799,2]
[314371828,1708241438360,-558.93745823,0.00036799,2]
[314371830,1708241438369,-500.0,0.00036799,2]
[314371831,1708241438379,-500.0,0.00036799,2]
[314371832,1708241438389,-597.5937396,0.00036799,2]
[314371833,1708241438398,-500.0,0.00036799,2]
[314371834,1708241438407,-500.0,0.00036799,2]
[314371836,1708241438416,-500.0,0.00036799,2]
[314371837,1708241438426,-24612.4327168,0.000368,2]
[314371839,1708241438453,-3751.69749833,0.000368,2]
[314371840,1708241438464,-3186.57443646,0.000368,2]
[314371842,1708241438476,-6274.56874841,0.000368,2]
[314371844,1708241438486,-3716.75281455,0.000368,2]
[314371846,1708241438495,-2123.9649742,0.000368,2]
[314371848,1708241438512,-7520.0,0.000368,2]
[314371851,1708241438524,-54276.14323472,0.000368,2]
[314371853,1708241438535,-333.46045267,0.000368,2]
[314371855,1708241438549,-385.33323618,0.000368,2]
[314371857,1708241438561,-627.62684945,0.000368,2]
[314371860,1708241438573,-492.21325743,0.000368,2]
[314371902,1708241439117,-154.07,0.00033957,2]
[314371905,1708241439127,-154.07,0.00035655,2]
[314371907,1708241439137,-245.05678644,0.00035662,2]
[314371909,1708241439148,-572.26528405,0.00035662,2]
[314371911,1708241439157,-276.00182467,0.00036386,2]
[314371913,1708241439168,-223.99817533,0.00036386,2]
[314371915,1708241439177,-61.49354966,0.00036386,2]
[314371917,1708241439189,-500.34975423,0.00036386,2]
[314371919,1708241439198,-164.53700188,0.00036624,2]
[314371922,1708241439208,-652.78506861,0.00036624,2]
[314371924,1708241439217,-500.0,0.00036797,2]
[314371926,1708241439226,-5005.06811213,0.000368,2]
[314371929,1708241439246,-343.94,0.00036209,2]
[314371931,1708241439254,-4446.88447192,0.000368,2]
[314371933,1708241439266,-289.4002629,0.000368,2]
[314371936,1708241439281,-20479.4743914,0.000368,2]
[314371938,1708241439290,-6068.592114,0.000368,2]
[314371940,1708241439299,-178.08569671,0.000368,2]
[314371942,1708241439308,-179.02285899,0.000368,27]
[314371944,1708241439317,-298.06018373,0.000368,2]
[314371945,1708241439326,-157.14673215,0.000368,2]
[314371948,1708241439335,-1478.92872853,0.000368,2]
[314371949,1708241439344,-781.3270576,0.000368,2]
[314371951,1708241439353,-2280.30832612,0.000368,2]
[314371953,1708241439362,-1271.70055547,0.000368,2]
[314371956,1708241439372,-3293.66610344,0.00036818,9]
[314371957,1708241439381,-150.0,0.0003685,2]
[314371959,1708241439390,-359.92,0.00036868,2]
[314371961,1708241439400,-800.0,0.00036877,2]
[314371963,1708241439409,-150.0,0.00036886,2]
[314371965,1708241439418,-193.26042319,0.0003689,2]
[314371967,1708241439431,-51300.31595421,0.00036895,2]
[314371970,1708241439443,-2072.13744929,0.00036895,2]
[314371972,1708241439454,-5210.88358044,0.00036895,2]
[314372166,1708241441391,-273.43566517,0.00036386,2]
[314372168,1708241441403,-449.41213487,0.00036386,2]
[314372171,1708241441415,-500.0,0.00036386,2]
[314372173,1708241441427,-583.45719996,0.000368,2]
[314372175,1708241441442,-807.74179384,0.000368,2]
[314372209,1708241443063,-1500.0,0.00036087,2]
[314372210,1708241443075,-245.32994431,0.00036352,2]
[314372211,1708241443088,-29.78909835,0.00036387,2]
[314372212,1708241443138,-470.21090165,0.00036387,2]
[314372213,1708241443149,-1074.91,0.00036387,2]
[314372214,1708241443160,-500.0,0.00036798,2]
[314372215,1708241443175,-1074.91,0.00036798,2]
[314372216,1708241443188,-2011.41026269,0.000368,2]
[314372217,1708241443200,-495.58272604,0.00036895,2]
[314372218,1708241443225,-150.0,0.00036613,2]
[314372219,1708241443237,-150.0,0.00036725,2]
[314372220,1708241443249,-1857.82207492,0.00036895,2]
[314372221,1708241443264,-2787.97357038,0.00036895,2]
[314372222,1708241443313,-150.0,0.00036837,2]
[314372223,1708241443325,-7091.58468181,0.00036895,2]
[314372224,1708241443370,-653.03474555,0.00036895,2]
[314372244,1708241447329,-577.87588356,0.00036385,2]
[314372245,1708241447339,-500.0,0.00036386,2]
[314372246,1708241447348,-194.58659101,0.00036386,2]
[314372247,1708241447357,-175.15433306,0.00036779,2]
[314372248,1708241447367,-538.98727663,0.00036796,2]
[314372249,1708241447376,-284.83040661,0.00036799,4]
[314372250,1708241447385,-150.0,0.00036827,2]
[314372251,1708241447395,-210706.25536548,0.00036895,2]
[314372252,1708241447413,-6614.7365741,0.00036895,2]
[314372253,1708241447425,-3568.76931675,0.00036895,2]
[314372254,1708241447437,-5141.36098,0.00036895,2]
[314372255,1708241447448,-2734.741,0.00036895,2]
[314372256,1708241447460,-1621.33212195,0.00036895,2]
[314372257,1708241447472,-4073.19642379,0.00036895,2]
[314372258,1708241447488,-1500.0,0.00036895,2]
[314372259,1708241447499,-635.38561209,0.00036895,2]
[314372260,1708241447519,-2882.00696292,0.00036895,2]
[314372261,1708241447536,-2808.9905031,0.00036895,2]
[314372262,1708241447548,-1765.55096813,0.00036895,2]
[314372270,1708242258885,200.5223574,3.5e-05,30]
[314372271,1708242298458,-1408.13948869,0.0003299,2]
[314372272,1708242298492,-2877.37254339,0.00032991,4]
[314372273,1708242298505,-1408.13948869,0.00032991,4]
[314372274,1708242298517,-8590.33700984,0.00032991,4]
[314372275,1708242298526,-1000.0,0.00032992,2]
[314372276,1708242298536,-1079.5178,0.00032993,14]
[314372285,1708242632234,-643.46267268,0.00026848,2]
[314372287,1708242632246,-404.59543248,0.00026848,2]
[314372288,1708242632256,-150.0,0.00026848,2]
[314372289,1708242632265,-845.51351457,0.00026849,2]
[314372290,1708242632461,-3815.10117222,0.00026849,2]
[314372291,1708242632473,-510.68677505,0.00026849,2]
[314372292,1708242632486,-5558.57273976,0.00026849,2]
[314372293,1708242632496,-154.03343787,0.00029432,2]
[314372294,1708242632505,-210.0,0.00029532,2]
[314372295,1708242632514,-305.93,0.00033132,2]
[314372296,1708242632524,-150.0,0.0003382,2]
[314372297,1708242632533,-150.0,0.00033931,2]
[314372298,1708242632542,-150.0,0.0003452,2]
[314372299,1708242632552,-2351.579444,0.000348,2]
[314372300,1708242632561,-10879.03046812,0.000348,2]
[314372301,1708242632573,-26313.05261388,0.000348,2]
[314372302,1708242632583,-150.99,0.000348,2]
[314372303,1708242632592,-150.0,0.00034859,2]
[314372304,1708242632602,-150.0,0.00034867,2]
[314372305,1708242632612,-150.0,0.00034887,2]
[314372306,1708242632621,-497.66,0.00034892,2]
[314372307,1708242632631,-250.0,0.00034937,2]
[314372308,1708242632640,-584.16,0.0003495,2]
[314372309,1708242632650,-160.2,0.00034972,2]
[314372310,1708242632659,-2000.0,0.00034983,2]
[314372311,1708242632668,-6442.5,0.00034986,2]
[314372312,1708242632678,-1063.0,0.00035,30]
[314372313,1708242632687,-150.0,0.00035007,2]
[314372314,1708242632696,-191.28,0.0003503,2]
[314372315,1708242632706,-303.24,0.00035046,2]
[314372316,1708242632716,-492.55,0.00035089,2]
[314372317,1708242632725,-306.03,0.00035106,2]
[314372318,1708242632735,-507.45,0.00035197,2]
[314372319,1708242632745,-150.0,0.00035217,2]
[314372320,1708242632754,-160.2,0.00035263,2]
[314372321,1708242632764,-150.0,0.00035389,2]
[314372322,1708242632774,-305.93,0.00035396,2]
[314372323,1708242632783,-150.0,0.00035403,2]
[314372324,1708242632792,-160.2,0.00035554,2]
[314372325,1708242632801,-150.0,0.00035566,2]
[314372326,1708242632811,-150.0,0.00035702,2]
[314372327,1708242632820,-150.0,0.0003573,2]
[314372328,1708242632829,-150.0,0.00035752,2]
[314372329,1708242632838,-150.0,0.0003576,2]
[314372330,1708242632848,-3527.369166,0.000358,2]
[314372331,1708242632873,-55788.124623,0.000358,2]
[314372332,1708242632884,-160.2,0.00035846,2]
[314372333,1708242632894,-150.0,0.00035895,2]
[314372334,1708242632903,-164.26604367,0.000359,2]
[314372335,1708242632914,-187.49007004,0.000359,2]
[314372336,1708242632923,-150.0,0.000359,2]
[314372337,1708242632933,-150.0,0.00035972,2]
[314372338,1708242632942,-150.0,0.00035983,2]
[314372339,1708242632952,-160.2,0.00036137,2]
[314372340,1708242632961,-150.0,0.00036202,2]
[314372341,1708242632971,-150.0,0.00036215,2]
[314372342,1708242632980,-150.0,0.0003625,2]
[314372343,1708242632989,-3322.165,0.00036285,2]
[314372344,1708242632999,-150.0,0.00036331,2]
[314372345,1708242633008,-150.0,0.00036376,2]
[314372346,1708242633017,-500.0,0.00036385,2]
[314372347,1708242633027,-500.0,0.00036385,2]
[314372348,1708242633036,-500.0,0.00036385,2]
[314372349,1708242633046,-581.66,0.00036385,2]
[314372350,1708242633055,-500.0,0.00036385,2]
[314372351,1708242633064,-500.0,0.00036385,2]
[314372352,1708242633074,-500.0,0.00036385,2]
[314372353,1708242633083,-1252.84,0.00036385,2]
[314372354,1708242633092,-500.0,0.00036385,2]
[314372355,1708242633101,-500.0,0.00036385,2]
[314372356,1708242633111,-600.40655849,0.00036385,2]
[314372357,1708242633121,-500.0,0.00036386,2]
[314372358,1708242633130,-570.07741244,0.00036386,2]
[314372359,1708242633139,-500.0,0.00036386,2]
[314372360,1708242633149,-500.0,0.00036386,2]
[314372361,1708242633159,-473.62929237,0.00036386,2]
[314372362,1708242633168,-500.0,0.00036386,2]
[314372363,1708242633177,-508.35059807,0.00036386,2]
[314372364,1708242633187,-500.0,0.00036386,2]
[314372365,1708242633197,-500.0,0.00036386,2]
[314372366,1708242633206,-500.0,0.00036386,2]
[314372367,1708242633216,-500.0,0.00036386,2]
[314372368,1708242633225,-501.67,0.00036386,2]
[314372369,1708242633235,-309.22,0.00036386,2]
[314372370,1708242633244,-500.0,0.00036386,2]
[314372371,1708242633254,-1000.0,0.00036386,7]
[314372372,1708242633263,-542.50592214,0.00036386,2]
[314372373,1708242633273,-500.0,0.00036386,2]
[314372374,1708242633282,-467.28343022,0.00036386,2]
[314372375,1708242633291,-500.0,0.00036386,2]
[314372376,1708242633300,-525.41305162,0.00036386,2]
[314372377,1708242633313,-500.0,0.00036386,2]
[314372378,1708242633323,-500.0,0.00036386,2]
[314372379,1708242633333,-500.0,0.00036386,2]
[314372380,1708242633342,-500.0,0.00036386,2]
[314372381,1708242633352,-500.0,0.00036386,2]
[314372382,1708242633364,-500.0,0.00036386,2]
[314372383,1708242633373,-500.0,0.00036386,2]
[314372384,1708242633383,-500.0,0.00036386,2]
[314372385,1708242633393,-500.0,0.00036386,2]
[314372386,1708242633402,-500.0,0.00036386,2]
[314372387,1708242633412,-500.0,0.00036386,2]
[314372388,1708242633423,-540.42447939,0.00036386,2]
[314372389,1708242633432,-651.43,0.00036386,2]
[314372390,1708242633442,-853.55,0.00036386,2]
[314372391,1708242633451,-536.9016364,0.00036386,2]
[314372392,1708242633461,-500.0,0.00036386,2]
[314372393,1708242633471,-453.63151515,0.00036386,2]
[314372394,1708242633480,-289.77538379,0.00036386,2]
[314372395,1708242633490,-500.0,0.00036386,2]
[314372396,1708242633499,-500.0,0.00036386,2]
[314372397,1708242633509,-500.0,0.00036386,2]
[314372398,1708242633518,-500.0,0.00036386,2]
[314372399,1708242633528,-500.0,0.00036386,2]
[314372400,1708242633537,-597.15009297,0.00036388,2]
[314372401,1708242633547,-296.03467885,0.00036388,10]
[314372402,1708242633556,-500.0,0.00036388,2]
[314372403,1708242633566,-500.0,0.00036388,2]
[314372404,1708242633579,-181.13601484,0.00036388,2]
[314372405,1708242633589,-150.0,0.00036389,2]
[314372406,1708242633599,-9803.22586314,0.00036389,2]
[314372407,1708242633608,-150.0,0.00036426,2]
[314372408,1708242633621,-102.8748863,0.00036429,2]
[314372417,1708242640789,-150.0,0.00034203,2]
[314372418,1708242640798,-150.0,0.0003428,2]
[314372419,1708242640807,-150.0,0.00034342,2]
[314372420,1708242640817,-150.0,0.00034352,2]
[314372421,1708242640826,-150.0,0.00034452,2]
[314372422,1708242640836,-150.0,0.00034541,2]
[314372423,1708242640846,-150.0,0.00034773,2]
[314372424,1708242640855,-150.0,0.00034863,2]
[314372425,1708242640865,-150.0,0.00035272,2]
[314372426,1708242640874,-150.0,0.00035904,2]
[314372427,1708242640886,-150.0,0.00036306,2]
[314372428,1708242640896,-57.3251137,0.00036429,2]
[314372429,1708242640905,-150.0,0.00036455,2]
[314372430,1708242640914,-150.0,0.00036456,2]
[314372431,1708242640923,-150.0,0.00036484,2]
[314372432,1708242640933,-150.0,0.00036491,2]
[314372433,1708242640942,-3887.81077865,0.000365,5]
[314372434,1708242640951,-10029.0,0.000365,5]
[314372435,1708242640960,-242.89344208,0.0003651,2]
[314372436,1708242640970,-1500.0,0.00036518,2]
[314372437,1708242640979,-150.0,0.00036519,2]
[314372438,1708242640988,-150.0,0.0003652,2]
[314372439,1708242640998,-150.0,0.00036523,2]
[314372440,1708242641007,-150.0,0.00036526,2]
[314372441,1708242641016,-165.81409443,0.00036598,8]